[Event "Late-Titled-Tuesday-Blitz-April-16-2024"]
[Site "Chess.com"]
[Date "2024.04.16"]
[Round "9"]
[White "jbking07"]
[Black "CrushingKings"]
[Result "0-1"]
[WhiteElo "2431"]
[BlackElo "2595"]
[TimeControl "180+1"]
[EndTime "15:44:46 PDT"]
[Termination "CrushingKings won by resignation"]

1. e4 {[%clk 0:03:00.9]} 1... g6 {[%clk 0:02:55.8]} 2. d4 {[%clk 0:02:59.5]}
2... Bg7 {[%clk 0:02:53.5]} 3. Nc3 {[%clk 0:02:59.5]} 3... c6 {[%clk 0:02:50.1]}
4. Be3 {[%clk 0:02:56.5]} 4... d5 {[%clk 0:02:50.3]} 5. e5 {[%clk 0:02:55.2]}
5... f6 {[%clk 0:02:47.8]} 6. exf6 {[%clk 0:02:54.9]} 6... Nxf6 {[%clk
0:02:46.4]} 7. Bd3 {[%clk 0:02:54]} 7... Ng4 {[%clk 0:02:43.8]} 8. Nf3 {[%clk
0:02:53.7]} 8... O-O {[%clk 0:02:39.4]} 9. O-O {[%clk 0:02:52.8]} 9... Nd7
{[%clk 0:02:31.6]} 10. Bg5 {[%clk 0:02:49.8]} 10... Qc7 {[%clk 0:02:21.7]} 11.
g3 {[%clk 0:02:30.2]} 11... e5 {[%clk 0:02:19.6]} 12. dxe5 {[%clk 0:02:27.6]}
12... Ndxe5 {[%clk 0:02:19.1]} 13. Be2 {[%clk 0:02:17.3]} 13... Nxf3+ {[%clk
0:01:58.2]} 14. Bxf3 {[%clk 0:02:18.2]} 14... Ne5 {[%clk 0:01:57.6]} 15. Bg2
{[%clk 0:02:10.8]} 15... Nc4 {[%clk 0:01:35.6]} 16. Rb1 {[%clk 0:01:54.4]} 16...
Nxb2 {[%clk 0:01:27.7]} 17. Nxd5 {[%clk 0:01:53]} 17... Qe5 {[%clk 0:01:22.9]}
18. Rxb2 {[%clk 0:01:17.5]} 18... Qxg5 {[%clk 0:01:20.3]} 19. Nc7 {[%clk
0:00:53.4]} 19... Bg4 {[%clk 0:00:57.4]} 20. Qb1 {[%clk 0:00:47.4]} 20... Bxb2
{[%clk 0:00:46.4]} 21. Nxa8 {[%clk 0:00:46.6]} 21... Qf6 {[%clk 0:00:34.1]} 22.
Nc7 {[%clk 0:00:45.2]} 22... Be2 {[%clk 0:00:33.4]} 23. Re1 {[%clk 0:00:29.2]}
23... Qxf2+ {[%clk 0:00:32.6]} 24. Kh1 {[%clk 0:00:29.9]} 24... Bf3 {[%clk
0:00:29.9]} 25. Rg1 {[%clk 0:00:26.6]} 25... Bxg2+ {[%clk 0:00:17.7]} 26. Rxg2
{[%clk 0:00:27.5]} 26... Qf1+ {[%clk 0:00:18.4]} 27. Rg1 {[%clk 0:00:24.5]}
27... Qf3+ {[%clk 0:00:14.7]} 28. Rg2 {[%clk 0:00:24.5]} 28... Bd4 {[%clk
0:00:12.2]} 29. h3 {[%clk 0:00:18.7]} 29... Qf1+ {[%clk 0:00:12.2]} 30. Qxf1
{[%clk 0:00:17.5]} 30... Rxf1+ {[%clk 0:00:12.8]} 31. Kh2 {[%clk 0:00:18.4]}
31... Kf7 {[%clk 0:00:12.5]} 32. Rd2 {[%clk 0:00:16.7]} 32... Rf2+ {[%clk
0:00:12.6]} 33. Rxf2+ {[%clk 0:00:16]} 33... Bxf2 {[%clk 0:00:13.5]} 34. Kg2
{[%clk 0:00:14.4]} 34... Bb6 {[%clk 0:00:13.3]} 35. Na8 {[%clk 0:00:14.7]} 35...
Bd8 {[%clk 0:00:13.8]} 36. Kf3 {[%clk 0:00:13.9]} 36... Ke6 {[%clk 0:00:14.3]}
37. Ke4 {[%clk 0:00:14.4]} 37... Kd6 {[%clk 0:00:11.4]} 38. h4 {[%clk
0:00:12.1]} 38... b5 {[%clk 0:00:07.9]} 39. Kd4 {[%clk 0:00:10.9]} 39... c5+
{[%clk 0:00:08.2]} 40. Ke4 {[%clk 0:00:10.9]} 40... a5 {[%clk 0:00:08.7]} 41. g4
{[%clk 0:00:10.6]} 41... Kc6 {[%clk 0:00:03.1]} 42. h5 {[%clk 0:00:10.2]} 42...
Kb7 {[%clk 0:00:02.9]} 43. hxg6 {[%clk 0:00:10.2]} 43... hxg6 {[%clk 0:00:02.8]}
44. Kd5 {[%clk 0:00:10.5]} 44... Kxa8 {[%clk 0:00:01.3]} 45. Kxc5 {[%clk
0:00:10.7]} 45... b4 {[%clk 0:00:02.2]} 46. Kb5 {[%clk 0:00:11.1]} 46... Kb7
{[%clk 0:00:02.8]} 47. Kc5 {[%clk 0:00:10.5]} 47... Bb6+ {[%clk 0:00:02.5]} 48.
Kd5 {[%clk 0:00:10.9]} 48... g5 {[%clk 0:00:03.4]} 49. Ke5 {[%clk 0:00:10.9]}
49... Be3 {[%clk 0:00:04]} 50. Ke4 {[%clk 0:00:11.3]} 50... Bf4 {[%clk
0:00:04.1]} 51. Kd4 {[%clk 0:00:11.7]} 51... Kb6 {[%clk 0:00:05]} 52. Kc4 {[%clk
0:00:12.2]} 52... Kc6 {[%clk 0:00:05.2]} 53. c3 {[%clk 0:00:11.1]} 53... bxc3
{[%clk 0:00:05.5]} 54. Kxc3 {[%clk 0:00:12]} 54... Kb5 {[%clk 0:00:06.2]} 55.
Kd4 {[%clk 0:00:12.2]} 55... Kb4 {[%clk 0:00:06.3]} 56. Kd3 {[%clk 0:00:12.5]}
56... Ka3 {[%clk 0:00:06.5]} 0-1

[Event "Late-Titled-Tuesday-Blitz-April-16-2024"]
[Site "Chess.com"]
[Date "2024.04.16"]
[Round "9"]
[White "DanielNaroditsky"]
[Black "Shankland"]
[Result "0-1"]
[WhiteElo "3119"]
[BlackElo "2921"]
[TimeControl "180+1"]
[EndTime "15:44:49 PDT"]
[Termination "Shankland won by resignation"]

1. e4 {[%clk 0:02:59.7]} 1... c5 {[%clk 0:03:00]} 2. c3 {[%clk 0:02:57.1]} 2...
Nf6 {[%clk 0:02:57.8]} 3. e5 {[%clk 0:02:55.5]} 3... Nd5 {[%clk 0:02:58.1]} 4.
Nf3 {[%clk 0:02:56.4]} 4... d6 {[%clk 0:02:56.6]} 5. Bb5+ {[%clk 0:02:56.3]}
5... Bd7 {[%clk 0:02:55.5]} 6. Bc4 {[%clk 0:02:56.7]} 6... e6 {[%clk 0:02:55.3]}
7. O-O {[%clk 0:02:56.3]} 7... Bc6 {[%clk 0:02:53.7]} 8. d4 {[%clk 0:02:54]}
8... Nd7 {[%clk 0:02:51.8]} 9. exd6 {[%clk 0:02:32.6]} 9... Bxd6 {[%clk
0:02:50.2]} 10. Re1 {[%clk 0:02:33.3]} 10... O-O {[%clk 0:02:49.2]} 11. Nbd2
{[%clk 0:02:33.4]} 11... N5f6 {[%clk 0:02:46.9]} 12. Bd3 {[%clk 0:02:26.4]}
12... Qc7 {[%clk 0:02:28.1]} 13. h3 {[%clk 0:02:20.2]} 13... Rfd8 {[%clk
0:02:26.2]} 14. Nc4 {[%clk 0:02:18.4]} 14... Bf4 {[%clk 0:02:26.3]} 15. Qe2
{[%clk 0:02:09.2]} 15... Bxc1 {[%clk 0:02:24.7]} 16. Raxc1 {[%clk 0:02:09]}
16... Bxf3 {[%clk 0:02:04.1]} 17. Qxf3 {[%clk 0:02:09]} 17... cxd4 {[%clk
0:02:04.6]} 18. cxd4 {[%clk 0:02:08.7]} 18... Rac8 {[%clk 0:02:05.3]} 19. Rc2
{[%clk 0:02:00]} 19... Qb8 {[%clk 0:02:02]} 20. Rec1 {[%clk 0:01:57.8]} 20...
Nf8 {[%clk 0:01:52]} 21. Na5 {[%clk 0:01:27.4]} 21... Rxc2 {[%clk 0:01:51.1]}
22. Rxc2 {[%clk 0:01:28.3]} 22... Rxd4 {[%clk 0:01:48.9]} 23. Nxb7 {[%clk
0:01:25.3]} 23... Rxd3 {[%clk 0:01:46.9]} 24. Qxd3 {[%clk 0:01:26.2]} 24... Qxb7
{[%clk 0:01:46.8]} 25. Qd8 {[%clk 0:01:25.2]} 25... h5 {[%clk 0:01:02.3]} 26. b3
{[%clk 0:01:14.1]} 26... Nd7 {[%clk 0:00:55.4]} 27. Rc7 {[%clk 0:00:58.2]} 27...
Qd5 {[%clk 0:00:53.5]} 28. Rxa7 {[%clk 0:00:54.5]} 28... Qd1+ {[%clk 0:00:43.7]}
29. Kh2 {[%clk 0:00:54.7]} 29... Qd4 {[%clk 0:00:44.3]} 30. Ra8 {[%clk
0:00:51.4]} 30... Kh7 {[%clk 0:00:36.3]} 31. Qg5 {[%clk 0:00:32.4]} 31... g6
{[%clk 0:00:30.8]} 32. Qe3 {[%clk 0:00:29.4]} 32... Qd6+ {[%clk 0:00:30.9]} 33.
Qg3 {[%clk 0:00:27]} 33... e5 {[%clk 0:00:19.9]} 34. a4 {[%clk 0:00:25.9]} 34...
Ne6 {[%clk 0:00:19.8]} 35. a5 {[%clk 0:00:18.5]} 35... Ndc5 {[%clk 0:00:20]} 36.
b4 {[%clk 0:00:14]} 36... Ne4 {[%clk 0:00:19.9]} 37. Qe3 {[%clk 0:00:14]} 37...
Nd2 {[%clk 0:00:18.4]} 38. Kg1 {[%clk 0:00:08.1]} 38... Nf4 {[%clk 0:00:11.2]}
39. Rc8 {[%clk 0:00:03.5]} 39... Qd5 {[%clk 0:00:10.3]} 40. f3 {[%clk
0:00:04.2]} 40... Qa2 {[%clk 0:00:06]} 41. Rc1 {[%clk 0:00:02.1]} 41... Nb3
{[%clk 0:00:04.5]} 42. Qf2 {[%clk 0:00:01.7]} 42... Qxf2+ {[%clk 0:00:02.7]} 43.
Kxf2 {[%clk 0:00:02.6]} 43... Nxc1 {[%clk 0:00:03]} 44. b5 {[%clk 0:00:03.4]}
44... Nd5 {[%clk 0:00:03]} 45. b6 {[%clk 0:00:03.4]} 45... Nd3+ {[%clk
0:00:03.3]} 46. Kg3 {[%clk 0:00:02]} 46... Nc5 {[%clk 0:00:04.2]} 47. Kh4 {[%clk
0:00:01.8]} 47... Kg7 {[%clk 0:00:04.6]} 48. g4 {[%clk 0:00:02.2]} 48... hxg4
{[%clk 0:00:04.5]} 49. b7 {[%clk 0:00:02.6]} 49... Nxb7 {[%clk 0:00:04.1]} 50.
a6 {[%clk 0:00:03.4]} 50... Nd6 {[%clk 0:00:04.3]} 51. a7 {[%clk 0:00:04.3]}
51... Nb6 {[%clk 0:00:04.7]} 52. hxg4 {[%clk 0:00:04.4]} 52... f6 {[%clk
0:00:05.3]} 53. g5 {[%clk 0:00:04.9]} 53... f5 {[%clk 0:00:05.8]} 54. Kg3 {[%clk
0:00:05.8]} 54... Kf7 {[%clk 0:00:06.5]} 55. Kf2 {[%clk 0:00:06]} 55... Ke6
{[%clk 0:00:07.2]} 56. Ke3 {[%clk 0:00:06.9]} 56... Kd5 {[%clk 0:00:07.8]} 57.
Kf2 {[%clk 0:00:07.3]} 57... Ndc8 {[%clk 0:00:08.1]} 58. Kg3 {[%clk 0:00:08.2]}
58... Nxa7 {[%clk 0:00:08.4]} 59. f4 {[%clk 0:00:08.3]} 59... exf4+ {[%clk
0:00:08.1]} 60. Kh3 {[%clk 0:00:09.1]} 60... Nc6 {[%clk 0:00:08.7]} 61. Kh4
{[%clk 0:00:10]} 61... Ke4 {[%clk 0:00:09]} 62. Kh3 {[%clk 0:00:10.9]} 62... f3
{[%clk 0:00:09.6]} 63. Kg3 {[%clk 0:00:11.8]} 63... Ke3 {[%clk 0:00:09.8]} 64.
Kh3 {[%clk 0:00:12.4]} 64... f2 {[%clk 0:00:10.3]} 65. Kg2 {[%clk 0:00:12.7]}
65... Ke2 {[%clk 0:00:10]} 0-1

[Event "Late-Titled-Tuesday-Blitz-April-16-2024"]
[Site "Chess.com"]
[Date "2024.04.16"]
[Round "9"]
[White "diokletian"]
[Black "dennisodessa"]
[Result "1/2-1/2"]
[WhiteElo "2678"]
[BlackElo "2560"]
[TimeControl "180+1"]
[EndTime "15:44:49 PDT"]
[Termination "Game drawn by stalemate"]

1. d4 {[%clk 0:02:54.2]} 1... Nf6 {[%clk 0:02:59]} 2. c4 {[%clk 0:02:45.5]} 2...
e6 {[%clk 0:02:58.5]} 3. Nc3 {[%clk 0:02:44.1]} 3... Bb4 {[%clk 0:02:58.3]} 4.
Qc2 {[%clk 0:02:44]} 4... O-O {[%clk 0:02:55]} 5. a3 {[%clk 0:02:39.3]} 5...
Bxc3+ {[%clk 0:02:54.7]} 6. Qxc3 {[%clk 0:02:40.2]} 6... d5 {[%clk 0:02:55.6]}
7. Nf3 {[%clk 0:02:10.2]} 7... dxc4 {[%clk 0:02:53.5]} 8. Qxc4 {[%clk
0:02:10.3]} 8... b6 {[%clk 0:02:53.9]} 9. Bf4 {[%clk 0:02:09]} 9... Ba6 {[%clk
0:01:52.6]} 10. Qxc7 {[%clk 0:02:06.6]} 10... Qd5 {[%clk 0:01:53.1]} 11. Qd6
{[%clk 0:01:57.9]} 11... Rc8 {[%clk 0:01:49.4]} 12. Qxd5 {[%clk 0:01:54.5]}
12... Nxd5 {[%clk 0:01:50.3]} 13. Bd2 {[%clk 0:01:53.4]} 13... Rc2 {[%clk
0:01:47.8]} 14. Rb1 {[%clk 0:01:46]} 14... Nd7 {[%clk 0:01:28.2]} 15. Kd1 {[%clk
0:01:37.7]} 15... Rac8 {[%clk 0:01:26.1]} 16. e4 {[%clk 0:01:28.8]} 16... Bxf1
{[%clk 0:01:24.5]} 17. Rxf1 {[%clk 0:01:28.6]} 17... N5f6 {[%clk 0:01:10.1]} 18.
Re1 {[%clk 0:01:23.2]} 18... R2c4 {[%clk 0:01:00.3]} 19. Rc1 {[%clk 0:01:16.3]}
19... Rxc1+ {[%clk 0:00:35.5]} 20. Bxc1 {[%clk 0:01:15.5]} 20... e5 {[%clk
0:00:36]} 21. Nxe5 {[%clk 0:01:11.3]} 21... Nxe5 {[%clk 0:00:35.8]} 22. dxe5
{[%clk 0:01:11.3]} 22... Ng4 {[%clk 0:00:36.3]} 23. f4 {[%clk 0:01:02.9]} 23...
Nxh2 {[%clk 0:00:26.4]} 24. Bd2 {[%clk 0:00:58.7]} 24... Ng4 {[%clk 0:00:25.2]}
25. Bc3 {[%clk 0:00:55.9]} 25... Nf2+ {[%clk 0:00:19.2]} 26. Kd2 {[%clk
0:00:54.2]} 26... Rc4 {[%clk 0:00:20.1]} 27. Rf1 {[%clk 0:00:38.5]} 27... Nxe4+
{[%clk 0:00:20]} 28. Kd3 {[%clk 0:00:38.8]} 28... b5 {[%clk 0:00:20.7]} 29. Bd4
{[%clk 0:00:36.2]} 29... Nc5+ {[%clk 0:00:20.1]} 30. Ke3 {[%clk 0:00:21.7]}
30... a5 {[%clk 0:00:20.5]} 31. Rd1 {[%clk 0:00:18.8]} 31... g6 {[%clk
0:00:18.2]} 32. g4 {[%clk 0:00:17.8]} 32... Ne6 {[%clk 0:00:17.2]} 33. b3 {[%clk
0:00:07.7]} 33... Rxd4 {[%clk 0:00:16.6]} 34. Rxd4 {[%clk 0:00:07.5]} 34... Nxd4
{[%clk 0:00:17.5]} 35. Kxd4 {[%clk 0:00:08.1]} 35... Kg7 {[%clk 0:00:17.8]} 36.
Ke4 {[%clk 0:00:08.4]} 36... h5 {[%clk 0:00:18.2]} 37. gxh5 {[%clk 0:00:09]}
37... gxh5 {[%clk 0:00:19.1]} 38. f5 {[%clk 0:00:09.9]} 38... Kh6 {[%clk
0:00:15.3]} 39. Kf4 {[%clk 0:00:08.5]} 39... h4 {[%clk 0:00:14.9]} 40. Kg4
{[%clk 0:00:07.1]} 40... h3 {[%clk 0:00:15.1]} 41. Kxh3 {[%clk 0:00:05.7]} 41...
Kg5 {[%clk 0:00:15.7]} 42. e6 {[%clk 0:00:06.2]} 42... fxe6 {[%clk 0:00:16.6]}
43. fxe6 {[%clk 0:00:07.1]} 43... Kf6 {[%clk 0:00:17.2]} 44. Kg3 {[%clk
0:00:06.6]} 44... Kxe6 {[%clk 0:00:17.6]} 45. Kf3 {[%clk 0:00:07.1]} 45... Kd5
{[%clk 0:00:17.8]} 46. Ke3 {[%clk 0:00:08]} 46... a4 {[%clk 0:00:16.1]} 47. bxa4
{[%clk 0:00:07.9]} 47... bxa4 {[%clk 0:00:17]} 48. Kd3 {[%clk 0:00:07.7]} 48...
Kc5 {[%clk 0:00:17.1]} 49. Kc3 {[%clk 0:00:08.2]} 49... Kb5 {[%clk 0:00:17.6]}
50. Kb2 {[%clk 0:00:08.8]} 50... Ka5 {[%clk 0:00:18.3]} 51. Kc3 {[%clk
0:00:09.3]} 51... Kb5 {[%clk 0:00:19.2]} 52. Kd4 {[%clk 0:00:10]} 52... Ka5
{[%clk 0:00:20.1]} 53. Kc4 {[%clk 0:00:10.7]} 53... Ka6 {[%clk 0:00:20.2]} 54.
Kb4 {[%clk 0:00:11.6]} 54... Ka7 {[%clk 0:00:21.1]} 55. Kxa4 {[%clk 0:00:12.5]}
55... Ka8 {[%clk 0:00:22]} 56. Kb4 {[%clk 0:00:13.4]} 56... Kb8 {[%clk
0:00:22.9]} 57. a4 {[%clk 0:00:14.3]} 57... Ka8 {[%clk 0:00:23.8]} 58. a5 {[%clk
0:00:15.2]} 58... Kb8 {[%clk 0:00:24.7]} 59. Kb5 {[%clk 0:00:16.1]} 59... Ka8
{[%clk 0:00:25.6]} 60. a6 {[%clk 0:00:17]} 60... Kb8 {[%clk 0:00:26.5]} 61. Kb6
{[%clk 0:00:17.9]} 61... Ka8 {[%clk 0:00:27.4]} 62. a7 {[%clk 0:00:18.8]}
1/2-1/2

[Event "Late-Titled-Tuesday-Blitz-April-16-2024"]
[Site "Chess.com"]
[Date "2024.04.16"]
[Round "9"]
[White "Lupul_Cenusiu"]
[Black "SergioMoralesG"]
[Result "1/2-1/2"]
[WhiteElo "2675"]
[BlackElo "2437"]
[TimeControl "180+1"]
[EndTime "15:44:50 PDT"]
[Termination "Game drawn by repetition"]

1. d4 {[%clk 0:03:00.9]} 1... d5 {[%clk 0:02:49.5]} 2. Bf4 {[%clk 0:03:00.6]}
2... Nf6 {[%clk 0:02:47.6]} 3. e3 {[%clk 0:03:00.4]} 3... c5 {[%clk 0:02:48.1]}
4. Nd2 {[%clk 0:03:00]} 4... e6 {[%clk 0:02:48.6]} 5. Ngf3 {[%clk 0:02:59.1]}
5... Bd6 {[%clk 0:02:49.2]} 6. c3 {[%clk 0:02:57.6]} 6... O-O {[%clk 0:02:47.4]}
7. Bd3 {[%clk 0:02:56.9]} 7... Qc7 {[%clk 0:02:47.6]} 8. Bxd6 {[%clk 0:02:39.2]}
8... Qxd6 {[%clk 0:02:48.5]} 9. dxc5 {[%clk 0:02:40.1]} 9... Qxc5 {[%clk
0:02:47.3]} 10. e4 {[%clk 0:02:40.8]} 10... dxe4 {[%clk 0:02:33.3]} 11. Nxe4
{[%clk 0:02:41.7]} 11... Nxe4 {[%clk 0:02:33.6]} 12. Bxe4 {[%clk 0:02:41.3]}
12... Nc6 {[%clk 0:02:30.4]} 13. O-O {[%clk 0:02:37.6]} 13... h6 {[%clk
0:02:22.9]} 14. Qe2 {[%clk 0:02:34.2]} 14... Bd7 {[%clk 0:02:12.9]} 15. Rad1
{[%clk 0:02:33.9]} 15... Rad8 {[%clk 0:02:12.8]} 16. Bb1 {[%clk 0:02:33.7]}
16... Ne7 {[%clk 0:01:56.3]} 17. Qe4 {[%clk 0:02:29.9]} 17... Nf5 {[%clk
0:01:45.7]} 18. Ne5 {[%clk 0:02:19.1]} 18... Bc6 {[%clk 0:01:15.7]} 19. Nxc6
{[%clk 0:02:04.9]} 19... Qxc6 {[%clk 0:01:16.6]} 20. Qxc6 {[%clk 0:02:01.6]}
20... bxc6 {[%clk 0:01:17.5]} 21. Bxf5 {[%clk 0:02:01.1]} 21... exf5 {[%clk
0:01:18.4]} 22. g3 {[%clk 0:01:59.3]} 22... Rfe8 {[%clk 0:01:16.4]} 23. Kg2
{[%clk 0:01:51.4]} 23... Kf8 {[%clk 0:01:13.9]} 24. Kf3 {[%clk 0:01:47.7]} 24...
g5 {[%clk 0:01:08.4]} 25. Rfe1 {[%clk 0:01:00.3]} 25... Rxd1 {[%clk 0:00:48.2]}
26. Rxd1 {[%clk 0:00:57.9]} 26... Rb8 {[%clk 0:00:48.4]} 27. Rd2 {[%clk
0:00:57.4]} 27... Ke7 {[%clk 0:00:48.6]} 28. b4 {[%clk 0:00:48.1]} 28... Ke6
{[%clk 0:00:46.2]} 29. a4 {[%clk 0:00:46.5]} 29... a5 {[%clk 0:00:38.7]} 30. Rd4
{[%clk 0:00:43.8]} 30... c5 {[%clk 0:00:31.8]} 31. bxc5 {[%clk 0:00:40.5]} 31...
Rc8 {[%clk 0:00:26.9]} 32. Rd6+ {[%clk 0:00:40.3]} 32... Ke5 {[%clk 0:00:25.5]}
33. Rxh6 {[%clk 0:00:36.7]} 33... Rxc5 {[%clk 0:00:25.2]} 34. Rb6 {[%clk
0:00:25.2]} 34... Rxc3+ {[%clk 0:00:22.9]} 35. Kg2 {[%clk 0:00:25.3]} 35... Rc5
{[%clk 0:00:18.3]} 36. h4 {[%clk 0:00:24.2]} 36... gxh4 {[%clk 0:00:15]} 37.
gxh4 {[%clk 0:00:25.1]} 37... Kf4 {[%clk 0:00:09]} 38. h5 {[%clk 0:00:24.8]}
38... Kg5 {[%clk 0:00:08.4]} 39. h6 {[%clk 0:00:25]} 39... Rc8 {[%clk
0:00:02.9]} 40. Ra6 {[%clk 0:00:19.6]} 40... f6 {[%clk 0:00:01.7]} 41. Kg3
{[%clk 0:00:17.6]} 41... Kxh6 {[%clk 0:00:01.7]} 42. Rxf6+ {[%clk 0:00:17.1]}
42... Kg5 {[%clk 0:00:02.6]} 43. Ra6 {[%clk 0:00:17.1]} 43... Rc5 {[%clk
0:00:03]} 44. Kf3 {[%clk 0:00:16]} 44... f4 {[%clk 0:00:03.2]} 45. Rb6 {[%clk
0:00:14.2]} 45... Rc3+ {[%clk 0:00:02.7]} 46. Kg2 {[%clk 0:00:14.3]} 46... Rc4
{[%clk 0:00:02.8]} 47. Rb5+ {[%clk 0:00:14.2]} 47... Kg4 {[%clk 0:00:03.5]} 48.
Rxa5 {[%clk 0:00:15.1]} 48... f3+ {[%clk 0:00:03.8]} 49. Kh2 {[%clk 0:00:15.3]}
49... Rc2 {[%clk 0:00:04.2]} 50. Kg1 {[%clk 0:00:10.3]} 50... Rc1+ {[%clk
0:00:04.7]} 51. Kh2 {[%clk 0:00:10.7]} 51... Rc2 {[%clk 0:00:05.6]} 52. Kg1
{[%clk 0:00:09.2]} 52... Rc1+ {[%clk 0:00:06.1]} 53. Kh2 {[%clk 0:00:09.5]}
53... Rc2 {[%clk 0:00:07]} 1/2-1/2

[Event "Late-Titled-Tuesday-Blitz-April-16-2024"]
[Site "Chess.com"]
[Date "2024.04.16"]
[Round "9"]
[White "Indefatigable11"]
[Black "RantomOpening"]
[Result "1-0"]
[WhiteElo "2408"]
[BlackElo "2524"]
[TimeControl "180+1"]
[EndTime "15:44:54 PDT"]
[Termination "Indefatigable11 won by checkmate"]

1. d4 {[%clk 0:03:00.9]} 1... g6 {[%clk 0:02:59]} 2. c4 {[%clk 0:03:00.4]} 2...
Bg7 {[%clk 0:02:59.2]} 3. Nf3 {[%clk 0:02:58.5]} 3... d6 {[%clk 0:02:58.3]} 4.
e4 {[%clk 0:02:58]} 4... Nf6 {[%clk 0:02:56.1]} 5. Nc3 {[%clk 0:02:57.6]} 5...
O-O {[%clk 0:02:56.6]} 6. Be2 {[%clk 0:02:57.2]} 6... b6 {[%clk 0:02:57.1]} 7.
O-O {[%clk 0:02:55.7]} 7... Bb7 {[%clk 0:02:57.6]} 8. Qc2 {[%clk 0:02:55.4]}
8... Nbd7 {[%clk 0:02:57.2]} 9. h3 {[%clk 0:02:54.2]} 9... c5 {[%clk 0:02:57.4]}
10. d5 {[%clk 0:02:54]} 10... a6 {[%clk 0:02:56.8]} 11. a4 {[%clk 0:02:53.4]}
11... Qc7 {[%clk 0:02:42.3]} 12. Be3 {[%clk 0:02:53]} 12... e5 {[%clk
0:02:40.7]} 13. Nd2 {[%clk 0:02:41.8]} 13... Ne8 {[%clk 0:02:32.7]} 14. Rfb1
{[%clk 0:02:40.8]} 14... a5 {[%clk 0:02:28.8]} 15. Nb5 {[%clk 0:02:39.9]} 15...
Qd8 {[%clk 0:02:27.7]} 16. Nf1 {[%clk 0:02:36]} 16... Ndf6 {[%clk 0:02:21.2]}
17. Ng3 {[%clk 0:02:33.4]} 17... Nc7 {[%clk 0:02:21]} 18. Rf1 {[%clk 0:02:23.8]}
18... Nxb5 {[%clk 0:02:19.4]} 19. axb5 {[%clk 0:02:23.5]} 19... Bc8 {[%clk
0:02:19.3]} 20. f4 {[%clk 0:02:14.6]} 20... exf4 {[%clk 0:02:13]} 21. Bxf4
{[%clk 0:02:14.6]} 21... Qc7 {[%clk 0:02:07.6]} 22. Qd2 {[%clk 0:02:01.9]} 22...
Re8 {[%clk 0:02:00.9]} 23. Bd3 {[%clk 0:02:00.5]} 23... Nd7 {[%clk 0:01:59.6]}
24. Bh6 {[%clk 0:01:59.7]} 24... Ne5 {[%clk 0:01:58.4]} 25. Bxg7 {[%clk
0:01:58.7]} 25... Kxg7 {[%clk 0:01:59.3]} 26. Be2 {[%clk 0:01:56.4]} 26... Qe7
{[%clk 0:01:58.1]} 27. Qf4 {[%clk 0:01:51.5]} 27... h6 {[%clk 0:01:52.3]} 28. h4
{[%clk 0:01:50.5]} 28... Bd7 {[%clk 0:01:50.2]} 29. h5 {[%clk 0:01:50.3]} 29...
Qg5 {[%clk 0:01:49.8]} 30. Qf2 {[%clk 0:01:47.5]} 30... Bg4 {[%clk 0:01:47.2]}
31. hxg6 {[%clk 0:01:45.3]} 31... fxg6 {[%clk 0:01:40.7]} 32. Bxg4 {[%clk
0:01:44.4]} 32... Nxg4 {[%clk 0:01:40.7]} 33. Qf7+ {[%clk 0:01:43.6]} 33... Kh8
{[%clk 0:01:41.4]} 34. Ra3 {[%clk 0:01:27.8]} 34... Qh4 {[%clk 0:01:20.9]} 35.
Rf4 {[%clk 0:01:23.6]} 35... Ne5 {[%clk 0:00:58.3]} 36. Qxe8+ {[%clk 0:01:19.8]}
36... Rxe8 {[%clk 0:00:56.9]} 37. Rxh4 {[%clk 0:01:20]} 37... Kg7 {[%clk
0:00:57.3]} 38. b3 {[%clk 0:01:16.8]} 38... Rf8 {[%clk 0:00:54]} 39. Ra2 {[%clk
0:01:15]} 39... Nd3 {[%clk 0:00:53.4]} 40. Rd2 {[%clk 0:01:11.9]} 40... Nc1
{[%clk 0:00:53.5]} 41. Rb2 {[%clk 0:01:08.1]} 41... Nd3 {[%clk 0:00:52.9]} 42.
Rb1 {[%clk 0:01:07.3]} 42... Ra8 {[%clk 0:00:45]} 43. Rf1 {[%clk 0:01:03]} 43...
Ne5 {[%clk 0:00:44.6]} 44. Rhf4 {[%clk 0:01:01.1]} 44... a4 {[%clk 0:00:41.5]}
45. bxa4 {[%clk 0:00:58.2]} 45... Rxa4 {[%clk 0:00:40.7]} 46. Rf8 {[%clk
0:00:53.8]} 46... Rxc4 {[%clk 0:00:39.6]} 47. Rd8 {[%clk 0:00:53.8]} 47... Rc3
{[%clk 0:00:37.3]} 48. Ne2 {[%clk 0:00:48.7]} 48... Re3 {[%clk 0:00:37.7]} 49.
Nf4 {[%clk 0:00:42.2]} 49... g5 {[%clk 0:00:30.7]} 50. Ne6+ {[%clk 0:00:42.2]}
50... Kg6 {[%clk 0:00:31.1]} 51. Rxd6 {[%clk 0:00:30.6]} 51... Kh5 {[%clk
0:00:31.3]} 52. Rxb6 {[%clk 0:00:28.9]} 52... Rxe4 {[%clk 0:00:28.8]} 53. d6
{[%clk 0:00:28.5]} 53... Kg4 {[%clk 0:00:23.6]} 54. Nxc5 {[%clk 0:00:25.8]}
54... Re2 {[%clk 0:00:22.8]} 55. d7 {[%clk 0:00:25]} 55... Kg3 {[%clk 0:00:23]}
56. Ne4+ {[%clk 0:00:19.4]} 56... Rxe4 {[%clk 0:00:23.1]} 57. d8=Q {[%clk
0:00:18.4]} 57... Re2 {[%clk 0:00:23.5]} 58. Qa8 {[%clk 0:00:10.3]} 58... g4
{[%clk 0:00:20.8]} 59. Qa3+ {[%clk 0:00:07.4]} 59... Nf3+ {[%clk 0:00:20.8]} 60.
Rxf3+ {[%clk 0:00:06.8]} 60... Kh4 {[%clk 0:00:21.1]} 61. Rxh6+ {[%clk 0:00:04]}
61... Kg5 {[%clk 0:00:20.9]} 62. Qc1+ {[%clk 0:00:04.2]} 62... Re3 {[%clk
0:00:19]} 63. Qxe3# {[%clk 0:00:04.3]} 1-0